bitfinex/quotes_SOLUSD_20240926
["timestamp","ask_amount","ask_price","bid_price","bid_amount"]
[1727336228382,0.2574725,151.2,151.19,22.7404]
[1727336229465,0.2574725,151.2,151.19,24.0626337]
[1727336230183,0.2574725,151.2,151.19,22.7404]
[1727336230357,0.2574725,151.25,151.19,17.44853365]
[1727336230676,0.2574725,151.25,151.24,13.48565797]
[1727336230879,0.2574725,151.25,151.24,14.80785978]
[1727336231062,0.2574725,151.25,151.24,13.48565797]
[1727336234064,0.2574725,151.25,151.24,14.80779076]
[1727336234392,0.2574725,151.25,151.24,13.48565797]
[1727336234990,0.2574725,151.25,151.22,36.63005797]
[1727336241582,0.2574725,151.25,151.23,6.6123]
[1727336241776,0.2574725,151.25,151.24,1.3222114]
[1727336242162,0.2574725,151.25,151.23,6.6123]
[1727336242367,0.2574725,151.25,151.24,20.09765797]
[1727336243074,0.2574725,151.25,151.24,13.48565797]
[1727336243281,0.2574725,151.25,151.23,6.6124]
[1727336243576,0.2574725,151.25,151.23,7.93461123]
[1727336244583,0.2574725,151.25,151.23,6.6124]
[1727336245391,0.2574725,151.25,151.24,13.48565797]
[1727336247580,0.2574725,151.25,151.24,20.09765797]
[1727336247885,0.2574725,151.25,151.24,13.48565797]
[1727336248091,0.2574725,151.25,151.24,20.09765797]
[1727336255894,0.2574725,151.25,151.24,21.41976737]
[1727336256197,6.8673725,151.29,151.28,6.6102]
[1727336256198,0.2574725,151.29,151.28,6.6102]
[1727336256494,0.2574725,151.29,151.28,21.41758916]
[1727336256799,0.2574725,151.29,151.28,20.09585797]
[1727336257302,0.2574725,151.29,151.28,21.41748858]
[1727336257598,0.2574725,151.29,151.28,20.09585797]
[1727336257895,0.430409,151.34,151.31,16.5217]
[1727336258081,0.430409,151.34,151.32,20.09405797]
[1727336258286,0.430409,151.34,151.31,23.1305]
[1727336258491,0.430409,151.34,151.31,36.61615797]
[1727336258878,0.430409,151.34,151.31,30.00735797]
[1727336259076,0.430409,151.34,151.32,6.6085]
[1727336259686,0.430409,151.34,151.32,20.09415797]
[1727336260894,0.430409,151.34,151.33,6.608]
[1727336261899,0.430409,151.34,151.32,13.48565797]
[1727336262075,0.430409,151.34,151.32,20.09405797]
[1727336263093,0.430409,151.34,151.31,16.5217]
[1727336263298,0.430409,151.34,151.32,13.48565797]
[1727336266376,0.430409,151.34,151.31,16.5217]
[1727336268005,0.430409,151.34,151.3,20.09495797]
[1727336268006,6.6099,151.29,151.25,6.6113]
[1727336268174,0.12549,151.32,151.25,6.6115]
[1727336268374,6.6088,151.32,151.27,20.09625797]
[1727336268597,6.6088,151.32,151.28,6.6102]
[1727336268802,0.555899,151.34,151.29,14.80739109]
[1727336268990,7.038109,151.34,151.3,1.3215828]
[1727336269380,0.430409,151.34,151.3,7.9308828]
[1727336269587,0.430409,151.34,151.3,6.6093]
[1727336270388,0.430409,151.34,151.28,16.5249]
[1727336270605,0.430409,151.34,151.29,20.09525797]
[1727336270606,7.038209,151.34,151.29,20.09525797]
[1727336272386,0.430409,151.34,151.29,13.48565797]
[1727336272593,6.608,151.33,151.29,13.48565797]
[1727336273500,6.608,151.33,151.29,1.3216553]
[1727336273800,6.608,151.33,151.28,36.62065797]
[1727336274006,7.038109,151.34,151.29,6.6097]
[1727336276612,6.608,151.33,151.29,6.6097]
[1727336278501,6.608,151.33,151.28,30.01055797]
[1727336278686,6.6088,151.32,151.28,16.5249]
[1727336279698,0.430409,151.34,151.25,16.5283]
[1727336280006,6.6094,151.3,151.25,23.1398]
[1727336280707,6.6094,151.3,151.26,6.611]
[1727336281908,23.31540786,151.33,151.25,16.5283]
[1727336282210,6.6099,151.29,151.25,16.5283]
[1727336282697,6.6095,151.3,151.25,23.1397]
[1727336283086,21.99168,151.33,151.25,16.5283]
[1727336283305,6.6091,151.31,151.26,6.6107]
[1727336287697,6.6098,151.29,151.24,6.6119]
[1727336287921,6.6107,151.27,151.23,6.6124]
[1727336288295,6.6103,151.28,151.23,6.6124]
[1727336288826,6.6107,151.27,151.22,30.01725797]
[1727336289007,6.6111,151.26,151.22,23.1443]
[1727336289200,6.6107,151.27,151.22,23.1443]
[1727336289914,6.6112,151.26,151.22,16.5316]
[1727336290617,6.6107,151.27,151.22,23.1444]
[1727336291007,28.7092,151.28,151.24,6.6119]
[1727336291217,0.25098,151.31,151.25,7.93357544]
[1727336291406,21.838,151.32,151.25,6.6115]
[1727336291611,6.6094,151.3,151.25,20.09715797]
[1727336291817,6.609,151.31,151.26,6.6111]
[1727336292100,28.4465,151.32,151.27,21.41814861]
[1727336292323,6.6085,151.32,151.27,21.41814861]
[1727336292537,6.6085,151.32,151.27,20.09625797]
[1727336292897,1.75413686,151.34,151.25,20.09675797]
[1727336292898,1.32372786,151.31,151.25,20.09675797]
[1727336293112,1.32372786,151.32,151.25,20.09675797]
[1727336293532,6.6097,151.3,151.25,20.09675797]
[1727336294925,6.6097,151.3,151.25,6.6111]
[1727336295129,6.6098,151.29,151.25,6.6111]
[1727336296406,6.6098,151.29,151.24,16.5293]
[1727336297107,6.6098,151.29,151.24,23.1412]
[1727336297926,6.6116,151.25,151.21,20.09885797]
[1727336298219,6.6112,151.26,151.21,20.09885797]
[1727336298425,6.6112,151.26,151.22,6.6128]
[1727336298805,6.6107,151.27,151.22,6.6128]
[1727336303326,1.32372786,151.3,151.21,13.48565797]
[1727336303522,6.6113,151.26,151.21,6.6132]
[1727336306034,6.6113,151.26,151.2,16.5334]
[1727336306327,0.25098,151.29,151.23,6.6121]
[1727336306508,6.6107,151.27,151.22,23.1442]
[1727336309625,0.25098,151.3,151.23,1.32217109]
[1727336309824,6.6103,151.28,151.23,21.41992906]
[1727336311335,6.6099,151.29,151.24,6.6119]
[1727336311540,6.6099,151.29,151.25,1.32204011]
[1727336313125,6.6099,151.29,151.24,6.6119]
[1727336313335,6.6099,151.29,151.25,1.32198896]
[1727336313522,6.6099,151.29,151.24,6.6119]
[1727336314636,6.6103,151.28,151.23,22.2341]
[1727336319630,6.6097,151.3,151.25,6.6112]
[1727336320123,6.6097,151.3,151.26,1.32192074]
[1727336320323,6.6097,151.3,151.25,6.6112]
[1727336320545,6.6099,151.29,151.25,6.6112]
[1727336322233,20.430409,151.34,151.26,16.5273]
[1727336322545,21.75413686,151.34,151.28,6.6099]
[1727336323148,6.6086,151.32,151.27,6.6106]
[1727336328254,21.75413686,151.34,151.27,6.6106]
[1727336328255,6.609,151.31,151.27,6.6106]
[1727336328629,6.609,151.31,151.26,23.1383]
[1727336331946,6.6086,151.32,151.28,6.6102]
[1727336332152,0.430409,151.34,151.28,23.1395]
[1727336332353,0.430409,151.34,151.29,1.32168038]
[1727336333036,1.57470786,151.33,151.28,16.5293]
[1727336333356,6.6092,151.31,151.28,16.5293]
[1727336335654,6.6094,151.3,151.28,16.5293]
[1727336336248,1.57470786,151.33,151.25,20.09715797]
[1727336336444,1.57470786,151.33,151.24,16.2654]
[1727336336445,6.6099,151.29,151.24,22.8772]
[1727336336645,6.6099,151.29,151.25,6.6115]
[1727336338048,1.57470786,151.33,151.26,1.32193119]
[1727336338049,0.25098,151.33,151.26,1.32193119]
[1727336338361,6.6094,151.3,151.26,1.32193119]
[1727336340337,6.6092,151.31,151.26,7.93293119]
[1727336340636,6.6086,151.32,151.27,20.09615797]
[1727336340837,0.430409,151.34,151.29,20.09535797]
[1727336341551,6.6081,151.33,151.29,13.48565797]
[1727336341756,6.6081,151.33,151.28,6.6101]
[1727336341939,6.6086,151.32,151.27,23.1369]
[1727336342262,6.6086,151.32,151.28,6.6101]
[1727336344036,0.430409,151.34,151.28,6.6101]
[1727336344238,0.430409,151.34,151.29,17.4373555]
[1727336344460,0.430409,151.34,151.3,6.6091]
[1727336345151,7.038009,151.34,151.3,6.6091]
[1727336346154,7.038009,151.34,151.29,39.2494]
[1727336348551,6.6084,151.33,151.29,32.6397]
[1727336353943,0.430409,151.34,151.29,16.524]
[1727336354142,6.6085,151.32,151.27,6.6105]
[1727336355090,6.6081,151.33,151.28,6.61]
[1727336355853,6.6085,151.32,151.28,6.61]
[1727336356268,6.6081,151.33,151.28,6.61]
[1727336356580,6.6081,151.33,151.29,6.6097]
[1727336358782,0.430409,151.34,151.28,30.01075797]
[1727336358969,0.430409,151.34,151.3,7.93058678]
[1727336360178,7.038109,151.34,151.3,7.93058678]
[1727336360675,7.038109,151.34,151.3,6.609]
[1727336361178,7.038109,151.34,151.28,30.01075797]
[1727336361403,7.038109,151.34,151.29,6.6096]
[1727336362274,0.430409,151.34,151.31,6.6088]
[1727336362476,0.430409,151.34,151.32,1.32144864]
[1727336363687,0.430409,151.34,151.31,6.6088]
[1727336364267,7.038209,151.34,151.3,16.5229]
[1727336364487,0.430409,151.34,151.3,23.1322]
[1727336365693,0.430409,151.34,151.3,16.5229]
[1727336365991,0.430409,151.34,151.3,23.1322]
[1727336366584,7.038109,151.34,151.3,16.5229]
[1727336369694,0.430409,151.34,151.27,6.6106]
[1727336369868,6.6084,151.33,151.27,6.6106]
[1727336370470,6.6084,151.33,151.28,6.6102]
[1727336371494,6.6084,151.33,151.29,6.6097]
[1727336372882,7.038109,151.34,151.29,6.6097]
[1727336373777,7.038109,151.34,151.3,6.6093]
[1727336377710,7.038109,151.34,151.29,6.6098]
[1727336377881,6.608,151.33,151.29,6.6098]
[1727336378082,6.608,151.33,151.28,16.5247]
[1727336378283,6.608,151.33,151.28,23.1348]
[1727336380298,0.430409,151.34,151.29,6.6097]
[1727336380503,7.038109,151.34,151.29,6.6097]
[1727336380693,6.6082,151.33,151.29,6.6097]
[1727336383503,0.430409,151.34,151.31,13.48565797]
[1727336383712,0.430409,151.34,151.31,20.09455797]
[1727336384389,0.430409,151.34,151.31,13.48565797]
[1727336385507,0.430409,151.34,151.31,20.09445797]
[1727336386615,0.430409,151.34,151.31,13.48565797]
[1727336386901,0.430409,151.34,151.32,6.6084]
[1727336387622,0.430409,151.34,151.33,1.32136097]
[1727336389595,0.430409,151.34,151.32,6.6084]
[1727336393292,0.430409,151.34,151.31,13.48565797]
[1727336393498,0.430409,151.34,151.33,20.09365797]
[1727336394991,0.430409,151.34,151.32,30.00635797]
[1727336395196,0.430409,151.34,151.32,36.61475797]
[1727336400806,0.430409,151.34,151.33,1.32133145]
[1727336401012,0.430409,151.34,151.32,36.61475797]
[1727336401512,0.430409,151.34,151.32,23.1291]
[1727336403810,0.430409,151.34,151.33,1.32133643]
[1727336404209,0.430409,151.34,151.33,7.92933643]
[1727336405006,0.430409,151.34,151.33,6.608]
[1727336408202,0.430409,151.34,151.33,7.92920953]
[1727336408419,0.430409,151.34,151.33,21.4148675]
[1727336409101,0.430409,151.34,151.33,20.09365797]
[1727336409814,0.430409,151.34,151.33,21.41483674]
[1727336412031,0.430409,151.34,151.33,20.09365797]
[1727336415920,0.430409,151.34,151.33,21.41480647]
[1727336417523,0.430409,151.34,151.33,20.09365797]
[1727336417727,0.430409,151.34,151.33,6.608]
[1727336417938,0.430409,151.34,151.33,20.09365797]
[1727336418309,0.430409,151.34,151.33,6.608]
[1727336418515,0.430409,151.34,151.33,20.09365797]
[1727336419811,0.430409,151.34,151.33,21.41481861]
[1727336420331,0.430409,151.34,151.33,20.09365797]
[1727336420544,0.430409,151.34,151.33,21.41481183]
[1727336423431,0.430409,151.34,151.33,36.00973797]
[1727336425324,0.2574725,151.38,151.37,6.6063]
[1727336425521,0.2574725,151.38,151.37,21.4127892]
[1727336426149,0.2574725,151.38,151.37,7.92713421]
[1727336426329,0.2574725,151.38,151.37,21.41279218]
[1727336427623,0.2574725,151.38,151.37,20.09195797]
[1727336430431,0.2574725,151.38,151.37,6.6063]
[1727336433332,0.2574725,151.38,151.36,16.5163]
[1727336433544,0.2574725,151.38,151.36,36.60845797]
[1727336434325,0.2574725,151.38,151.36,16.5163]
[1727336436531,0.2574725,151.38,151.37,1.32106006]
[1727336436732,0.2574725,151.38,151.36,16.5163]
[1727336437530,0.2574725,151.38,151.35,20.09275797]
[1727336437531,0.2574725,151.38,151.35,6.6071]
[1727336441035,0.2574725,151.38,151.36,1.32103525]
[1727336442665,0.2574725,151.38,151.35,6.6071]
[1727336442842,0.2574725,151.38,151.3,16.5231]
[1727336443044,23.0842725,151.38,151.3,16.5231]
[1727336443241,6.6068,151.36,151.31,20.09435797]
[1727336443437,6.6068,151.36,151.32,1.32137337]
[1727336443763,6.6068,151.36,151.31,20.09435797]
[1727336444450,6.6072,151.35,151.3,23.1324]
[1727336444638,1.32372786,151.34,151.26,16.5269]
[1727336444838,6.6089,151.32,151.27,6.6106]
[1727336445937,39.5998725,151.38,151.27,13.48565797]
[1727336446237,6.608,151.34,151.29,20.09505797]
[1727336446436,6.6068,151.36,151.31,6.6088]
[1727336446634,6.6072,151.35,151.32,1.32152538]
[1727336447040,0.12549,151.37,151.32,1.32152538]
[1727336447276,6.6068,151.36,151.32,1.32152538]
[1727336447565,6.6068,151.36,151.31,6.6088]
[1727336448864,6.6068,151.36,151.32,1.32145103]
[1727336449945,6.6068,151.36,151.31,6.6088]
[1727336450354,39.5998725,151.38,151.31,6.6088]
[1727336450541,6.6072,151.35,151.31,6.6088]
[1727336451150,6.6077,151.34,151.29,13.48565797]
[1727336451359,6.6077,151.34,151.29,20.09535797]
[1727336451963,6.6077,151.34,151.3,1.32158501]
[1727336452267,6.6077,151.34,151.3,7.93078501]
[1727336452474,6.6077,151.34,151.3,6.6092]
[1727336453366,6.6077,151.34,151.31,1.3215856]
[1727336454268,6.6077,151.34,151.3,1.32158652]
[1727336454464,6.6077,151.34,151.32,1.32158652]
[1727336454850,6.6077,151.34,151.3,6.6093]
[1727336455356,6.6072,151.35,151.3,6.6093]
[1727336459359,6.6081,151.33,151.28,23.1346]
[1727336459673,6.6081,151.33,151.29,6.6097]
[1727336467967,6.6081,151.33,151.28,16.5248]
[1727336468170,0.25098,151.35,151.28,16.5248]
[1727336468382,6.6085,151.32,151.29,1.32173908]
[1727336468551,6.608,151.33,151.29,1.32173908]
[1727336468752,0.25098,151.37,151.3,13.48565797]
[1727336468976,6.6071,151.36,151.31,21.41585503]
[1727336469175,23.0842725,151.38,151.31,21.41585503]
[1727336469474,6.6068,151.36,151.31,21.41585503]
[1727336469651,23.0842725,151.38,151.34,6.6076]
[1727336469852,0.2574725,151.38,151.35,1.32124632]
[1727336470074,0.2574725,151.38,151.34,6.6076]
[1727336470574,0.2574725,151.38,151.35,1.32115213]
[1727336471363,0.2574725,151.38,151.35,21.4139101]
[1727336471563,0.2574725,151.38,151.36,1.32115015]
[1727336473075,0.2574725,151.38,151.35,20.09275797]
[1727336477569,0.2574725,151.38,151.34,23.1258]
[1727336478077,0.2574725,151.38,151.35,20.09285797]
[1727336478462,0.2574725,151.38,151.3,15.8576]
[1727336478463,6.6068,151.36,151.3,15.8576]
[1727336478659,6.6063,151.37,151.31,13.48565797]
[1727336478981,0.2574725,151.38,151.33,6.6079]
[1727336478982,6.8633725,151.38,151.33,6.6079]
[1727336482169,6.8633725,151.38,151.33,20.09355797]
[1727336482366,6.8633725,151.38,151.34,7.92891593]
[1727336482367,0.2574725,151.38,151.34,7.92891593]
[1727336483061,0.2574725,151.38,151.35,20.09265797]
[1727336486474,0.2574725,151.38,151.35,6.607]
[1727336490190,0.2574725,151.38,151.35,13.48565797]
[1727336490365,0.2574725,151.38,151.36,6.6065]
[1727336495988,0.2574725,151.38,151.35,36.61015797]
[1727336498379,0.2574725,151.38,151.37,6.6063]
[1727336498687,0.2574725,151.38,151.37,20.09195797]
[1727336502700,0.2574725,151.38,151.36,6.6066]
[1727336509782,0.2574725,151.38,151.35,23.1246]
[1727336512203,0.2574725,151.38,151.35,16.5175]
[1727336513198,0.2574725,151.38,151.35,23.1245]
[1727336519724,0.2574725,151.38,151.36,7.92778635]
[1727336519923,0.2574725,151.38,151.35,30.00315797]
[1727336519924,0.2574725,151.38,151.37,6.6063]
[1727336525529,0.2574725,151.38,151.37,43.86884197]
[1727336526120,0.2574725,151.38,151.37,30.383184]
[1727336528519,0.2574725,151.38,151.35,16.5175]
[1727336528740,0.2574725,151.38,151.36,6.6067]
[1727336530612,6.8636725,151.38,151.33,6.608]
[1727336530823,6.8636725,151.38,151.32,16.5207]
[1727336530824,0.2574725,151.38,151.32,16.5207]
[1727336531128,6.6067,151.36,151.32,23.1291]
[1727336531511,1.32372786,151.35,151.32,16.5207]
[1727336531820,6.6067,151.36,151.32,16.5207]
[1727336532031,6.8637725,151.38,151.32,23.1287]
[1727336532228,1.32372786,151.37,151.32,16.5207]
[1727336532618,6.6068,151.36,151.32,16.5207]
[1727336533034,6.6068,151.36,151.32,23.1291]
[1727336533224,6.6063,151.37,151.32,23.1291]
[1727336533429,6.6063,151.37,151.33,7.92954007]
[1727336536110,6.6063,151.37,151.32,23.1291]
[1727336536330,1.32372786,151.36,151.32,23.1291]
[1727336536512,0.2574725,151.38,151.33,1.32146737]
[1727336537028,0.2574725,151.38,151.34,6.6076]
[1727336537247,0.2574725,151.38,151.34,16.5184]
[1727336537534,0.2574725,151.38,151.36,6.6067]
[1727336539213,0.2574725,151.38,151.37,1.32120403]
[1727336543447,0.2574725,151.38,151.35,13.48565797]
[1727336543629,0.2574725,151.38,151.37,20.09195797]
[1727336549726,0.2574725,151.38,151.37,6.6063]
[1727336550942,0.2574725,151.38,151.37,21.41295297]
[1727336551132,0.2574725,151.38,151.37,20.09195797]
[1727336554452,0.2574725,151.38,151.37,6.6063]
[1727336554631,0.2574725,151.38,151.36,30.00195797]
[1727336554632,0.2574725,151.38,151.36,23.1229]
[1727336555438,0.2574725,151.38,151.36,16.5163]
[1727336556828,0.2574725,151.38,151.36,23.1229]
[1727336558244,0.2574725,151.38,151.34,6.6075]
[1727336558746,0.2574725,151.38,151.35,1.32127881]
[1727336558953,0.2574725,151.38,151.36,1.32127771]
[1727336559326,0.2574725,151.38,151.36,7.9277652]
[1727336560041,0.2574725,151.38,151.37,7.92727344]
[1727336560851,0.2574725,151.38,151.37,6.6063]
[1727336563257,0.2574725,151.38,151.36,16.5168]
[1727336563474,0.2574725,151.38,151.36,23.1234]
[1727336563749,0.2574725,151.38,151.37,6.6063]
[1727336563947,0.2574725,151.38,151.37,7.92736228]
[1727336570146,0.0924528,151.41,151.37,21.57204228]
[1727336570333,0.0924528,151.41,151.4,20.09065797]
[1727336570656,0.0924528,151.41,151.4,21.41120789]
[1727336573048,0.0924528,151.41,151.4,20.09065797]
[1727336574564,0.0924528,151.41,151.4,21.41129619]
[1727336580665,0.0924528,151.41,151.4,41.41129619]
[1727336581171,0.2574725,151.43,151.41,0.25098]
[1727336581352,0.2574725,151.43,151.42,21.41011948]
[1727336581563,0.3655885,151.48,151.42,35.05699948]
[1727336581749,0.3655885,151.48,151.47,20.08755797]
[1727336582053,0.3655885,151.48,151.47,21.40770852]
[1727336582260,0.3655885,151.48,151.47,21.65868852]
[1727336582642,0.3655885,151.48,151.47,21.40770852]
[1727336583370,0.3655885,151.48,151.47,20.08755797]
[1727336583954,0.3655885,151.48,151.47,21.40747309]
[1727336586349,0.3655885,151.48,151.47,21.65845309]
[1727336586766,0.1023316,151.5,151.49,6.601]
[1727336587071,0.1023316,151.5,151.49,21.40639795]
[1727336588448,0.1023316,151.5,151.49,20.33763797]
[1727336591682,0.1023316,151.5,151.49,20.08665797]
[1727336592674,0.1023316,151.5,151.49,20.33763797]
[1727336593456,0.1023316,151.5,151.43,8.31287503]
[1727336593772,0.1023316,151.5,151.46,6.6023]
[1727336594280,0.1023316,151.5,151.45,16.5064]
[1727336594281,6.7033316,151.5,151.45,16.5064]
[1727336594569,0.1023316,151.5,151.46,6.6023]
[1727336594763,0.1023316,151.5,151.45,23.1091]
[1727336594965,6.6015,151.48,151.43,6.6036]
[1727336595295,1.32372786,151.47,151.42,16.5102]
[1727336595485,6.6046,151.49,151.44,13.48565797]
[1727336595653,0.1023316,151.5,151.46,20.08795797]
[1727336595852,0.1023316,151.5,151.47,1.32021891]
[1727336596063,0.1023316,151.5,151.48,13.48565797]
[1727336596879,0.1023316,151.5,151.49,1.32008956]
[1727336597475,0.1023316,151.5,151.49,6.601]
[1727336602777,0.2574725,151.52,151.51,6.6002]
[1727336602970,0.2574725,151.52,151.51,21.40542638]
[1727336604164,0.2574725,151.52,151.51,20.08585797]
[1727336607672,0.2574725,151.52,151.51,6.6002]
[1727336607879,0.2574725,151.52,151.51,20.08585797]
[1727336614680,0.2574725,151.52,151.48,16.5035]
[1727336614966,0.2574725,151.52,151.41,2.87217011]
[1727336614967,1.58120036,151.52,151.45,16.5069]
[1727336615270,6.6015,151.48,151.44,6.6032]
[1727336615786,6.6011,151.49,151.44,6.6032]
[1727336616491,0.2574725,151.52,151.45,1.32041065]
[1727336616784,6.6002,151.51,151.46,6.6023]
[1727336617582,0.2574725,151.52,151.44,16.5072]
[1727336617801,6.6002,151.51,151.46,6.6023]
[1727336619394,6.6011,151.49,151.44,23.1103]
[1727336619974,1.32372786,151.48,151.44,23.1103]
[1727336620494,1.32372786,151.48,151.44,16.5072]
[1727336620686,6.6015,151.48,151.44,16.5072]
[1727336620883,1.58120036,151.52,151.41,20.96811141]
[1727336621094,6.6021,151.47,151.42,6.6041]
[1727336621290,6.6021,151.47,151.43,6.6036]
[1727336622589,6.6016,151.48,151.43,6.6036]
[1727336622996,6.6016,151.48,151.43,7.92412298]
[1727336623190,6.6016,151.48,151.43,6.6036]
[1727336624478,1.32372786,151.47,151.43,6.6036]
[1727336624793,7.92562786,151.47,151.43,6.6036]
[1727336624990,6.6019,151.47,151.43,6.6036]
[1727336625201,1.57470786,151.51,151.43,6.6036]
[1727336625403,6.602,151.47,151.42,16.5096]
[1727336625694,7.92612786,151.46,151.42,23.1136]
[1727336627289,1.32372786,151.46,151.42,16.5096]
[1727336627501,22.2903,151.47,151.44,6.6032]
[1727336629189,6.601,151.5,151.45,6.6028]
[1727336630013,6.6011,151.49,151.44,23.1104]
[1727336631089,1.32372786,151.48,151.44,23.1104]
[1727336631488,7.92522786,151.48,151.44,23.1104]
[1727336631683,1.32372786,151.47,151.44,23.1104]
[1727336631887,1.32372786,151.47,151.44,16.5075]
[1727336632307,6.6015,151.48,151.44,23.1107]
[1727336636417,6.6011,151.49,151.45,6.6026]
[1727336638987,1.32372786,151.48,151.45,6.6026]
[1727336639188,6.6011,151.49,151.45,6.6026]
[1727336640490,1.32372786,151.48,151.44,23.1106]
[1727336640700,6.6016,151.48,151.44,23.1106]
[1727336640881,1.32372786,151.47,151.44,23.1106]
[1727336641790,1.32372786,151.47,151.44,16.5075]
[1727336642211,6.6016,151.48,151.44,16.5075]
[1727336642704,1.32372786,151.47,151.44,16.5075]
[1727336643408,6.6011,151.49,151.45,6.6027]
[1727336646011,0.25098,151.51,151.45,6.6027]
[1727336646012,6.6006,151.5,151.45,6.6027]
[1727336646209,6.6003,151.51,151.47,6.6019]
[1727336646396,6.6003,151.51,151.46,6.6023]
[1727336646595,1.32372786,151.5,151.46,6.6023]
[1727336655424,1.32372786,151.5,151.44,16.5075]
[1727336655617,6.6011,151.49,151.44,23.1106]
[1727336655938,1.32372786,151.48,151.44,23.1106]
[1727336656527,7.92522786,151.48,151.44,16.5075]
[1727336656713,1.32372786,151.47,151.44,16.5075]
[1727336657223,0.25098,151.49,151.41,29.93216724]
[1727336657413,7.92552786,151.48,151.43,6.6035]
[1727336658037,6.8576725,151.52,151.47,6.6015]
[1727336658330,8.18140036,151.52,151.47,6.6015]
[1727336659506,8.18140036,151.52,151.46,16.5057]
[1727336659701,8.18140036,151.52,151.48,6.6015]
[1727336660315,1.58120036,151.52,151.48,6.6015]
[1727336660525,0.2574725,151.52,151.48,6.6015]
[1727336661326,1.58120036,151.52,151.48,6.6015]
[1727336661512,0.2574725,151.52,151.48,6.6015]
[1727336662536,0.2574725,151.52,151.46,16.5057]
[1727336662738,0.2574725,151.52,151.49,6.6009]
[1727336668442,0.2574725,151.52,151.5,6.6005]
[1727336668938,0.2574725,151.52,151.51,13.42106724]
[1727336669119,0.2574725,151.52,151.51,20.02126724]
[1727336672345,0.2574725,151.52,151.51,21.34108716]
[1727336675731,0.2574725,151.52,151.51,20.02126724]
[1727336676749,0.2574725,151.52,151.51,21.34100966]
[1727336677123,0.2574725,151.52,151.51,20.02126724]
[1727336679656,0.2574725,151.52,151.51,6.6002]
[1727336679835,0.2574725,151.52,151.51,20.02126724]
[1727336685933,0.2574725,151.52,151.51,6.6002]
[1727336686360,0.2574725,151.52,151.51,20.02126724]
[1727336691833,0.2574725,151.52,151.51,21.3411506]
[1727336692454,0.2574725,151.52,151.51,20.02126724]
[1727336701269,0.2574725,151.52,151.51,6.6002]
[1727336701966,0.2574725,151.52,151.51,20.02126724]
[1727336703270,0.2574725,151.52,151.51,6.6002]
[1727336703776,0.2574725,151.52,151.51,20.02126724]
[1727336704273,0.2574725,151.52,151.51,6.6002]
[1727336706161,0.2574725,151.52,151.5,16.5011]
[1727336706162,0.2574725,151.52,151.5,23.1016]
[1727336706673,0.2574725,151.52,151.5,16.5011]
[1727336707653,0.2574725,151.52,151.5,23.1016]
[1727336710767,0.2574725,151.52,151.51,6.6002]
[1727336712276,0.2574725,151.52,151.5,23.1016]
[1727336714173,0.2574725,151.52,151.51,6.6002]
[1727336718185,0.2574725,151.52,151.5,23.1016]
[1727336718476,1.58120036,151.52,151.5,23.1016]
[1727336718673,1.58120036,151.52,151.5,16.5011]
[1727336719264,0.2574725,151.52,151.5,16.5011]
[1727336723078,0.2574725,151.52,151.5,23.1017]
[1727336725748,0.2574725,151.52,151.5,16.5011]
[1727336725955,0.2574725,151.52,151.51,6.6002]
[1727336727070,0.2574725,151.52,151.51,7.92019819]
[1727336727377,0.2574725,151.52,151.51,7.92003178]
[1727336727980,0.2574725,151.52,151.51,6.6002]
[1727336729174,0.2574725,151.52,151.51,7.92000158]
[1727336729388,0.2574725,151.52,151.51,6.6002]
[1727336748588,0.2574725,151.52,151.51,20.02126724]
[1727336751197,0.2574725,151.52,151.51,21.34089576]
[1727336751698,0.2574725,151.52,151.51,41.34089576]
[1727336754373,0.2574725,151.52,151.51,40.02126724]
[1727336755178,0.2574725,151.52,151.51,41.3408536]
[1727336755700,0.2,151.55,151.54,26.84988]
[1727336755992,0.2,151.55,151.54,40.27094724]
[1727336756383,0.2,151.55,151.54,55.86574724]
[1727336760102,0.2,151.55,151.54,57.18493673]
[1727336760597,0.2,151.55,151.54,55.86574724]
[1727336761391,0.2,151.55,151.54,42.1937]
[1727336761590,0.2,151.55,151.54,55.61476724]
[1727336762599,0.2,151.55,151.54,26.5989]
[1727336762802,0.2,151.55,151.54,27.91836482]
[1727336763902,0.2,151.55,151.54,6.5989]
[1727336764071,0.2,151.55,151.54,20.01996724]